fUST/lending_fUST_20251014
["ID","MTS","AMOUNT","RATE_DAILY","PERIOD"]
[391194790,1760413874992,-1155.0,0.00030626,2]
[391194791,1760413875002,-158.752212,0.0003064,30]
[391194792,1760413875011,-154.683435,0.0003064,30]
[391194793,1760413875022,-159.229149,0.00030656,30]
[391194794,1760413875032,-159.229149,0.00030656,30]
[391194795,1760413875041,-159.229149,0.00030656,30]
[391194796,1760413875053,-159.229149,0.00030656,30]
[391194797,1760413875063,-159.229149,0.00030656,30]
[391194798,1760413875073,-159.229149,0.00030656,30]
[391194799,1760413875082,-159.229149,0.00030656,30]
[391194800,1760413875093,-159.229144,0.00030656,30]
[391194801,1760413875103,-151.0,0.00030656,30]
[391194802,1760413875112,-156.998648,0.00030656,30]
[391194803,1760413875122,-151.0,0.00030656,30]
[391194804,1760413875131,-151.0,0.00030656,30]
[391194805,1760413875140,-151.0,0.00030656,30]
[391194806,1760413875149,-151.0,0.00030656,30]
[391194807,1760413875159,-199.796118,0.00030656,30]
[391194808,1760413875167,-151.0,0.00030656,30]
[391194809,1760413875181,-227.896554,0.00030656,30]
[391194810,1760413875190,-151.0,0.00030656,30]
[391194811,1760413875199,-151.0,0.00030656,30]
[391194812,1760413875208,-151.0,0.00030656,30]
[391194813,1760413875217,-151.0,0.00030656,30]
[391194814,1760413875227,-151.0,0.00030656,30]
[391194815,1760413875236,-151.0,0.00030656,30]
[391194816,1760413875245,-151.0,0.00030656,30]
[391194817,1760413875255,-151.0,0.00030656,30]
[391194818,1760413875264,-151.0,0.00030656,30]
[391194819,1760413875279,-151.0,0.00030656,30]
[391194820,1760413875291,-151.0,0.00030656,2]
[391194821,1760413875302,-151.0,0.00030656,2]
[391194822,1760413875311,-154.976333,0.00030656,2]
[391194823,1760413875319,-151.0,0.00030656,30]
[391194824,1760413875327,-151.0,0.00030656,30]
[391194825,1760413875336,-151.0,0.00030656,30]
[391194826,1760413875345,-267.16175172,0.00030656,30]
[391194827,1760413875355,-213.233606,0.00030656,30]
[391194828,1760413875364,-213.233606,0.00030656,30]
[391194829,1760413875374,-213.233606,0.00030656,30]
[391194830,1760413875383,-213.233606,0.00030656,30]
[391194831,1760413875392,-213.233606,0.00030656,30]
[391194832,1760413875402,-213.233606,0.00030656,30]
[391194833,1760413875411,-213.233606,0.00030656,30]
[391194834,1760413875420,-213.233611,0.00030656,30]
[391194835,1760413875429,-151.0,0.00030656,30]
[391194836,1760413875439,-152.629698,0.00030656,30]
[391194837,1760413875448,-208.72567,0.00030656,30]
[391194838,1760413875457,-208.72567,0.00030656,30]
[391194839,1760413875466,-208.72567,0.00030656,30]
[391194840,1760413875475,-208.72567,0.00030656,30]
[391194841,1760413875484,-208.72567,0.00030656,30]
[391194842,1760413875493,-208.72567,0.00030656,30]
[391194843,1760413875503,-208.72567,0.00030656,30]
[391194844,1760413875512,-208.725676,0.00030656,30]
[391194845,1760413875521,-151.0,0.00030656,30]
[391194846,1760413875530,-151.0,0.00030656,30]
[391194847,1760413875539,-245.927379,0.00030656,30]
[391194848,1760413875548,-151.0,0.00030656,30]
[391194849,1760413875558,-153.442054,0.00030656,30]
[391194850,1760413875567,-151.0,0.00030656,30]
[391194851,1760413875576,-151.0,0.00030656,30]
[391194852,1760413875586,-151.0,0.00030656,30]
[391194853,1760413875595,-151.0,0.00030656,30]
[391194854,1760413875604,-151.0,0.00030656,30]
[391194855,1760413875612,-151.0,0.00030656,30]
[391194856,1760413875621,-400.0,0.00030684,120]
[391194857,1760413875630,-5000.0,0.00030685,60]
[391194858,1760413875639,-200.0,0.00030691,120]
[391194859,1760413875648,-154.683435,0.00030692,20]
[391194860,1760413875658,-5000.0,0.00030695,60]
[391194861,1760413875667,-1613.0,0.00030703,2]
[391194862,1760413875676,-1155.0,0.00030718,2]
[391194863,1760413875685,-764.893788,0.00030719,30]
[391194864,1760413875695,-764.893788,0.00030719,30]
[391194865,1760413875704,-764.893788,0.00030719,30]
[391194866,1760413875715,-262.439349,0.00030719,30]
[391194867,1760413875724,-184.155896,0.00030719,30]
[391194868,1760413875733,-764.8937906,0.00030719,30]
[391194869,1760413875746,-184.155896,0.00030719,30]
[391194870,1760413875762,-184.155896,0.00030719,30]
[391194871,1760413875771,-184.155893,0.00030719,30]
[391194872,1760413875781,-356.498542,0.00030719,30]
[391194873,1760413875790,-356.498542,0.00030719,30]
[391194874,1760413875799,-356.498542,0.00030719,30]
[391194875,1760413875807,-356.498541,0.00030719,30]
[391194876,1760413875815,-151.0,0.00030719,30]
[391194877,1760413875824,-151.0,0.00030719,30]
[391194878,1760413875833,-151.0,0.00030719,30]
[391194879,1760413875841,-151.0,0.00030719,30]
[391194880,1760413875850,-199.381887,0.00030719,15]
[391194881,1760413875860,-199.381887,0.00030719,15]
[391194882,1760413875870,-199.381887,0.00030719,15]
[391194883,1760413875879,-199.381889,0.00030719,15]
[391194884,1760413875888,-10000.0,0.00030719,2]
[391194885,1760413875897,-10000.0,0.00030719,2]
[391194886,1760413875906,-10000.0,0.00030719,2]
[391194887,1760413875916,-10000.0,0.00030719,2]
[391194888,1760413875926,-10000.0,0.00030719,2]
[391194889,1760413875935,-10000.0,0.00030719,2]
[391194890,1760413875944,-10000.0,0.00030719,2]
[391194891,1760413875953,-10000.0,0.00030719,2]
[391194892,1760413875964,-10000.0,0.00030719,2]
[391194893,1760413875973,-10000.0,0.00030719,2]
[391194894,1760413875982,-10000.0,0.00030719,2]
[391194895,1760413875992,-1536.0,0.00030719,2]
[391194896,1760413876001,-962397.98249937,0.00030719,20]
[391194897,1760413876171,-2581407.49141369,0.00030719,20]
[391194898,1760413876335,-5455.43,0.00020163,2]
[391194899,1760413876344,-5455.43,0.00020163,2]
[391194900,1760413876354,-5455.43,0.00020163,2]
[391194901,1760413876363,-500.0,0.00020163,2]
[391194902,1760413876372,-5455.43,0.00020163,2]
[391194903,1760413876381,-5455.43,0.00020163,2]
[391194904,1760413876389,-5455.43,0.00020163,2]
[391194905,1760413876398,-5455.43,0.00020163,2]
[391194906,1760413876407,-5455.43,0.00020163,2]
[391194907,1760413876416,-887.02,0.00020264,2]
[391194908,1760413876425,-500.0,0.00020264,2]
[391194909,1760413876434,-887.02,0.00020264,2]
[391194910,1760413876449,-500.0,0.00020264,2]
[391194911,1760413876458,-887.02,0.00020264,2]
[391194912,1760413876467,-500.0,0.00020264,2]
[391194913,1760413876476,-887.02,0.00020264,2]
[391194914,1760413876485,-500.0,0.00020264,2]
[391194915,1760413876494,-887.02,0.00020264,2]
[391194916,1760413876503,-887.02,0.00020264,2]
[391194917,1760413876512,-887.02,0.00020264,2]
[391194918,1760413876521,-887.02,0.00020264,2]
[391194919,1760413876530,-500.0,0.00020364,2]
[391194920,1760413876539,-500.98916345,0.00020364,2]
[391194921,1760413876548,-500.0,0.00020364,2]
[391194922,1760413876557,-502.38895921,0.00020364,2]
[391194923,1760413876566,-504.60399592,0.00020364,2]
[391194924,1760413876575,-99626.63162432,0.00030719,20]
[391194925,1760413876862,-3e-08,0.00030719,20]
[391194926,1760413876916,5000.0,0.0002,2]
[391194927,1760413876987,300.0,0.0002,2]
[391194928,1760413877121,-5455.43,0.00020163,2]
[391194929,1760413877130,-5455.43,0.00020163,2]
[391194930,1760413877140,-5455.43,0.00020163,2]
[391194931,1760413877149,-5455.43,0.00020163,2]
[391194932,1760413877159,-2029.47814191,0.00020163,2]
[391194933,1760413877232,-827.49,0.00020154,3]
[391194934,1760413877242,-1292.51,0.00020163,2]
[391194935,1760413877255,-2133.44185809,0.00020163,2]
[391194936,1760413877264,-213.5814466,0.00020163,2]
[391194937,1760413877275,-5241.8485534,0.00020163,2]
[391194938,1760413877285,-5455.43,0.00020163,2]
[391194939,1760413877294,-5455.43,0.00020163,2]
[391194940,1760413877303,-5455.43,0.00020163,2]
[391194941,1760413877314,-5455.43,0.00020163,2]
[391194942,1760413877324,-5455.43,0.00020163,2]
[391194943,1760413877332,-5455.43,0.00020163,2]
[391194944,1760413877342,-5455.43,0.00020163,2]
[391194945,1760413877351,-5455.54,0.00020163,2]
[391194946,1760413877360,-500.0,0.00020164,2]
[391194947,1760413877370,-300.0,0.000202,2]
[391194948,1760413877379,-300.0,0.000202,2]
[391194949,1760413877388,-887.02,0.00020264,2]
[391194950,1760413877398,-500.65870377,0.00020264,2]
[391194951,1760413877407,-887.02,0.00020264,2]
[391194952,1760413877416,-887.02,0.00020264,2]
[391194953,1760413877426,-887.02,0.00020264,2]
[391194954,1760413877435,-887.02,0.00020264,2]
[391194955,1760413877445,-887.02,0.00020264,2]
[391194956,1760413877454,-887.02,0.00020264,2]
[391194957,1760413877464,-887.02,0.00020264,2]
[391194958,1760413877473,-887.02,0.00020264,2]
[391194959,1760413877482,-887.02,0.00020264,2]
[391194960,1760413877492,-887.02,0.00020264,2]
[391194961,1760413877501,-887.02,0.00020264,2]
[391194962,1760413877511,-887.02,0.00020264,2]
[391194963,1760413877520,-887.02,0.00020264,2]
[391194964,1760413877529,-887.2145575,0.00020264,2]
[391194965,1760413877538,-500.0,0.00020264,2]
[391194966,1760413877547,-500.0,0.00020264,2]
[391194967,1760413877556,-500.0,0.00020264,2]
[391194968,1760413877565,-500.0,0.00020264,2]
[391194969,1760413877573,-151.0,0.00020364,7]
[391194970,1760413877582,-1654.98,0.00021524,3]
[391194971,1760413877591,-151.0,0.00024801,7]
[391194972,1760413877600,-155.905224,0.00027396,7]
[391194973,1760413877609,-590.2706493,0.00030712,30]
[391194974,1760413877618,-153.0,0.00030712,30]
[391194975,1760413877627,-135551.80985598,0.00030719,20]
[391194976,1760413877639,-590.0,0.00030719,20]
[391194977,1760413877650,-1094.811727,0.00030719,20]
[391194978,1760413877662,-25530.7412,0.00030719,20]
[391194979,1760413877874,300.0,0.0002,2]
[391194980,1760413878069,5000.0,0.0002,2]
[391194981,1760413878583,300.0,0.00019999,2]
[391194982,1760413878641,300.0,0.0002,2]
[391194983,1760413879069,2518.73,0.0001941,2]
[391194984,1760413879286,300.0,0.0002,2]
[391194985,1760413885313,2557.80482274,0.0002,2]
[391194986,1760413885904,300.0,0.0002,2]
[391194987,1760413900584,5000.0,0.0002,2]
[391194988,1760413923202,5000.0,0.0002,2]
[391194989,1760413945927,5000.0,0.0002,2]
[391194990,1760413968272,5000.0,0.0002,2]
[391194991,1760413992128,5000.0,0.0002,2]
[391194992,1760413996900,4813.80463235,0.0002,2]
[391194993,1760414006245,666.0,0.00019073,2]
[391194994,1760414015188,5000.0,0.00020013,2]
[391194996,1760414026993,5000.01,0.0002,2]
[391194997,1760414027022,3474.82769929,0.0002,2]
[391194998,1760414030568,192.47,0.0002,2]
[391194999,1760414038491,5000.0,0.00020013,2]
[391195000,1760414061104,5000.0,0.0002,2]
[391195001,1760414061140,55258.78473554,0.0002,2]
[391195002,1760414084221,5000.0,0.0002,2]
[391195003,1760414094280,225.96830409,0.00019964,3]
[391195004,1760414103709,857.4,0.00019404,2]
[391195005,1760414106667,5000.0,0.0002,2]
[391195006,1760414109378,220.31486843,0.00019964,2]
[391195007,1760414129109,5000.0,0.0002,2]
[391195008,1760414145717,4193.89306032,0.0002,2]
[391195009,1760414151612,5000.0,0.0002,2]
[391195010,1760414175191,5000.0,0.0002,2]
[391195011,1760414186180,10333.96080536,0.00030875,60]
[391195012,1760414198081,5000.0,0.0002,2]
[391195013,1760414221145,5000.0,0.0002,2]
[391195014,1760414244002,2986.36447841,0.0002,2]
[391195015,1760414282272,5649.89179954,0.0002,2]
[391195016,1760414337274,3851.04370588,0.0002,2]
[391195017,1760414385936,179.76031136,0.00019913,2]
[391195018,1760414390928,179.76031134,0.00019938,2]
[391195019,1760414394039,230.92574267,0.00019963,2]
[391195020,1760414395933,179.76031134,0.00019963,2]
[391195021,1760414483962,300.0,0.0002,2]
[391195022,1760414494407,300.0,0.0002,2]
[391195023,1760414505119,300.0,0.0002,2]
[391195026,1760414537971,3766.59453302,0.00019964,2]
[391195027,1760414571085,846.49,0.00019415,2]
[391195028,1760414651574,835.71,0.00019515,2]
[391195029,1760414675768,252.22482537,0.0001996,2]
[391195030,1760414677459,3080.83496472,0.0001996,2]
[391195031,1760414679471,3080.83496468,0.00019973,2]
[391195032,1760414681456,3080.83496468,0.00019987,2]
[391195033,1760414683444,3080.83496468,0.0002,2]
[391195035,1760414732691,825.08,0.00019509,2]
[391195037,1760414793625,2511.06302202,0.0001996,2]
[391195038,1760414809435,364.88768932,0.0002,2]
[391195039,1760414880516,193.06,0.00015205,2]
[391195040,1760414880805,193.05,0.00015205,2]
[391195041,1760414929111,177.54473753,0.00019963,2]
[391195042,1760414937438,-256.50454561,0.00020011,2]
[391195043,1760414938862,-43.49545439,0.00020011,2]
[391195044,1760414938886,-194.89269887,0.00020011,2]
[391195045,1760414941443,-266.40210364,0.00020011,2]
[391195046,1760414962366,220.69672219,0.00019913,2]
[391195047,1760415011918,616.16699296,0.0001996,2]
[391195048,1760415013963,616.16699293,0.00019961,2]
[391195049,1760415015918,616.16699293,0.00019962,2]
[391195050,1760415017936,616.16699293,0.00019963,2]
[391195051,1760415019915,616.16699293,0.00019964,2]
[391195068,1760415031825,-738.70519749,0.00020011,2]
[391195069,1760415031834,-300.0,0.00020011,2]
[391195070,1760415031844,-1200.0,0.00020011,2]
[391195072,1760415031853,-150.0,0.00020012,2]
[391195073,1760415031862,-300.0,0.00020012,2]
[391195074,1760415031872,-300.0,0.00020012,2]
[391195075,1760415031881,-300.0,0.00020012,2]
[391195076,1760415031890,-300.0,0.00020012,2]
[391195077,1760415031899,-1765.86205562,0.00020013,3]
[391195079,1760415031910,-330.49246287,0.00020013,3]
[391195081,1760415031926,-400.0,0.00020013,3]
[391195083,1760415031949,-4985.6913126,0.00020013,3]
[391195085,1760415031958,-50000.0,0.00020013,2]
[391195088,1760415031968,-160.0,0.00020013,2]
[391195089,1760415031978,-151.0,0.00020048,2]
[391195091,1760415031987,-151.0,0.00020048,2]
[391195094,1760415031997,-151.0,0.00020048,2]
[391195097,1760415032008,-151.0,0.00020048,2]
[391195098,1760415032017,-151.66445314,0.00020048,2]
[391195100,1760415032027,-151.0,0.00020048,2]
[391195102,1760415032036,-151.0,0.00020048,2]
[391195105,1760415032049,-151.0,0.00020048,2]
[391195107,1760415032059,-203.47099788,0.00020048,2]
[391195109,1760415032068,-515.63,0.0002005,3]
[391195111,1760415032077,-257.82,0.0002005,3]
[391195113,1760415032086,-500.0,0.00020052,2]
[391195115,1760415032096,-500.0,0.00020052,2]
[391195117,1760415032105,-500.0,0.00020052,2]
[391195119,1760415032114,-500.0,0.00020052,2]
[391195121,1760415032123,-500.0,0.00020052,2]
[391195123,1760415032133,-500.0,0.00020052,2]
[391195125,1760415032142,-500.0,0.00020052,2]
[391195127,1760415032152,-500.0,0.00020052,2]
[391195129,1760415032161,-500.0,0.00020052,2]
[391195131,1760415032171,-500.0,0.00020052,2]
[391195133,1760415032181,-282.95908752,0.00020052,2]
[391195135,1760415032192,-502.07627843,0.00020052,2]
[391195137,1760415032202,-501.17528373,0.00020053,2]
[391195139,1760415032211,-291.47791444,0.00020053,2]
[391195141,1760415032220,-500.0,0.00020053,2]
[391195143,1760415032230,-501.58229235,0.00020053,2]
[391195145,1760415032240,-500.0,0.00020053,2]
[391195147,1760415032250,-500.0,0.00020059,2]
[391195149,1760415032262,-387.83584516,0.00020059,2]
[391195151,1760415032272,-232.86170933,0.00020059,2]
[391195153,1760415032281,-556.98301051,0.00020059,2]
[391195155,1760415032290,-500.0,0.00020059,2]
[391195157,1760415032299,-191.87862162,0.00020059,2]
[391195159,1760415032308,-647.94419699,0.00020059,2]
[391195161,1760415032317,-500.0,0.00020059,2]
[391195163,1760415032327,-500.0,0.00020059,2]
[391195165,1760415032336,-500.0,0.00020059,2]
[391195167,1760415032345,-648.43697877,0.00020059,2]
[391195169,1760415032354,-500.0,0.00020059,2]
[391195171,1760415032363,-500.0,0.00020059,2]
[391195173,1760415032373,-514.03770728,0.00020059,2]
[391195175,1760415032382,-500.0,0.00020059,2]
[391195177,1760415032391,-161.19723252,0.00020059,2]
[391195179,1760415032401,-240.13302583,0.00020059,2]
[391195181,1760415032410,-407.78488399,0.00020059,2]
[391195183,1760415032419,-501.66981311,0.00020059,2]
[391195185,1760415032429,-500.0,0.00020059,2]
[391195187,1760415032438,-490.0,0.00020059,2]
[391195189,1760415032448,-500.0,0.00020059,2]
[391195191,1760415032460,-500.0,0.00020059,2]
[391195193,1760415032475,-500.0,0.00020059,2]
[391195195,1760415032484,-632.34264855,0.00020059,2]
[391195197,1760415032494,-500.0,0.00020059,2]
[391195200,1760415032506,-500.0,0.00020059,2]
[391195201,1760415032517,-500.0,0.00020059,2]
[391195203,1760415032527,-500.0,0.00020059,2]
[391195206,1760415032537,-500.0,0.00020059,2]
[391195208,1760415032548,-500.0,0.00020059,2]
[391195210,1760415032557,-500.0,0.00020059,2]
[391195212,1760415032567,-500.0,0.00020059,2]
[391195214,1760415032575,-500.0,0.00020059,2]
[391195216,1760415032585,-500.0,0.00020059,2]
[391195218,1760415032594,-500.0,0.00020059,2]
[391195220,1760415032603,-500.0,0.00020059,2]
[391195222,1760415032613,-500.0,0.00020059,2]
[391195224,1760415032622,-53.79695367,0.00020059,2]
[391195389,1760415033960,6919.17503532,0.00019962,2]
[391195394,1760415034249,21753.48133167,0.00019962,2]
[391195612,1760415037855,-773.46,0.0002005,3]
[391195613,1760415037865,-500.0,0.00020052,2]
[391195614,1760415037873,-503.86865983,0.00020052,2]
[391195615,1760415037883,-407.24868645,0.00020053,2]
[391195616,1760415037894,-92.75131355,0.00020053,2]
[391195617,1760415037903,-302.92304633,0.00020059,2]
[391195618,1760415037912,-868.01645553,0.0002006,2]
[391195619,1760415037923,-599280.39316163,0.0002006,2]
[391195620,1760415037932,-500.0,0.0002006,2]
[391195621,1760415037942,-500.0,0.0002006,2]
[391195622,1760415037951,-500.0,0.0002006,2]
[391195623,1760415037960,-500.0,0.0002006,2]
[391195624,1760415037969,-500.0,0.0002006,2]
[391195625,1760415037978,-467.92641367,0.0002006,2]
[391195626,1760415037987,-500.0,0.0002006,2]
[391195627,1760415037996,-500.0,0.0002006,2]
[391195628,1760415038005,-500.0,0.0002006,2]
[391195629,1760415038019,-500.0,0.0002006,2]
[391195631,1760415038028,-500.0,0.0002006,2]
[391195633,1760415038038,-500.0,0.0002006,2]
[391195634,1760415038047,-500.0,0.0002006,2]
[391195635,1760415038056,-290.90622278,0.0002006,2]
[391195636,1760415038066,-500.83493264,0.0002006,2]
[391195637,1760415038075,-500.0,0.0002006,2]
[391195638,1760415038084,-500.0,0.0002006,2]
[391195639,1760415038093,-481.08,0.0002006,2]
[391195640,1760415038102,-500.0,0.0002006,2]
[391195641,1760415038111,-500.0,0.0002006,2]
[391195642,1760415038120,-500.0,0.0002006,2]
[391195643,1760415038128,-576.24,0.0002006,2]
[391195644,1760415038138,-576.24,0.0002006,2]
[391195645,1760415038147,-576.24,0.0002006,2]
[391195646,1760415038156,-576.24,0.0002006,2]
[391195647,1760415038165,-576.24,0.0002006,2]
[391195648,1760415038174,-576.24,0.0002006,2]
[391195649,1760415038184,-576.24,0.0002006,2]
[391195650,1760415038193,-576.24,0.0002006,2]
[391195651,1760415038202,-576.24,0.0002006,2]
[391195652,1760415038211,-576.24,0.0002006,2]
[391195653,1760415038220,-576.24,0.0002006,2]
[391195654,1760415038230,-576.24,0.0002006,2]
[391195655,1760415038239,-576.24,0.0002006,2]
[391195656,1760415038248,-576.24,0.0002006,2]
[391195657,1760415038257,-576.24,0.0002006,2]
[391195658,1760415038269,-576.24,0.0002006,2]
[391195659,1760415038279,-576.24,0.0002006,2]
[391195660,1760415038289,-576.24,0.0002006,2]
[391195661,1760415038298,-576.24,0.0002006,2]
[391195662,1760415038308,-576.24,0.0002006,2]
[391195663,1760415038318,-576.24,0.0002006,2]
[391195664,1760415038331,-576.24,0.0002006,2]
[391195665,1760415038340,-576.24,0.0002006,2]
[391195666,1760415038350,-576.35812498,0.0002006,2]
[391195667,1760415038359,-500.0,0.0002006,2]
[391195668,1760415038369,-500.0,0.0002006,2]
[391195669,1760415038379,-500.0,0.0002006,2]
[391195670,1760415038389,-500.0,0.0002006,2]
[391195671,1760415038399,-500.0,0.0002006,2]
[391195672,1760415038408,-500.0,0.0002006,2]
[391195673,1760415038418,-500.0,0.0002006,2]
[391195674,1760415038427,-500.0,0.0002006,2]
[391195675,1760415038436,-500.0,0.0002006,2]
[391195676,1760415038446,-500.0,0.0002006,2]
[391195677,1760415038457,-500.0,0.0002006,2]
[391195678,1760415038471,-500.0,0.0002006,2]
[391195679,1760415038481,-500.0,0.0002006,2]
[391195680,1760415038490,-500.0,0.0002006,2]
[391195681,1760415038500,-500.0,0.0002006,2]
[391195682,1760415038512,-500.0,0.0002006,2]
[391195683,1760415038522,-500.0,0.0002006,2]
[391195684,1760415038531,-500.0,0.0002006,2]
[391195685,1760415038541,-475.50826795,0.0002006,2]
[391195686,1760415038551,-500.0,0.0002006,2]
[391195687,1760415038561,-500.0,0.0002006,2]
[391195688,1760415038570,-500.0,0.0002006,2]
[391195689,1760415038579,-500.0,0.0002006,2]
[391195690,1760415038588,-500.0,0.0002006,2]
[391195691,1760415038598,-500.0,0.0002006,2]
[391195692,1760415038608,-259.07843588,0.0002006,2]
[391195693,1760415038617,-500.0,0.00020061,2]
[391195694,1760415038626,-500.0,0.00020061,2]
[391195695,1760415038635,-500.0,0.00020061,2]
[391195696,1760415038644,-500.0,0.00020062,2]
[391195697,1760415038653,-500.0,0.00020062,2]
[391195698,1760415038666,-500.0,0.00020062,2]
[391195699,1760415038675,-222.74390658,0.00020062,2]
[391195700,1760415038685,-500.0,0.00020062,2]
[391195701,1760415038694,-500.0,0.00020062,2]
[391195702,1760415038704,-500.76097281,0.00020062,2]
[391195703,1760415038713,-500.0,0.00020062,2]
[391195704,1760415038723,-500.0,0.00020062,2]
[391195705,1760415038732,-500.0,0.00020062,2]
[391195706,1760415038742,-500.0,0.00020062,2]
[391195707,1760415038751,-500.0,0.00020062,2]
[391195708,1760415038762,-500.0,0.00020062,2]
[391195709,1760415038772,-500.0,0.00020062,2]
[391195710,1760415038782,-500.0,0.00020062,2]
[391195711,1760415038791,-500.0,0.00020062,2]
[391195712,1760415038801,-500.0,0.00020062,2]
[391195713,1760415038810,-500.0,0.00020062,2]
[391195714,1760415038819,-500.0,0.00020062,2]
[391195715,1760415038828,-500.0,0.00020062,2]
[391195716,1760415038838,-589.64,0.00020062,2]
[391195717,1760415038849,-500.0,0.00020062,2]
[391195718,1760415038858,-500.0,0.00020062,2]
[391195719,1760415038868,-500.0,0.00020062,2]
[391195720,1760415038878,-500.0,0.00020062,2]
[391195721,1760415038888,-500.0,0.00020062,2]
[391195722,1760415038897,-500.0,0.00020062,2]
[391195723,1760415038907,-500.0,0.00020062,2]
[391195724,1760415038917,-500.0,0.00020062,2]
[391195725,1760415038928,-575.90697119,0.00020062,2]
[391195726,1760415038937,-500.0,0.00020062,2]
[391195727,1760415038948,-500.0,0.00020062,2]
[391195728,1760415038957,-500.0,0.00020062,2]
[391195729,1760415038967,-500.0,0.00020062,2]
[391195730,1760415038977,-244.4938284,0.00020062,2]
[391195731,1760415038987,-500.0,0.00020062,2]
[391195732,1760415038996,-500.0,0.00020062,2]
[391195733,1760415039007,-500.0,0.00020062,2]
[391195734,1760415039019,-500.0,0.00020062,2]
[391195735,1760415039029,-500.0,0.00020062,2]
[391195736,1760415039039,-500.0,0.00020062,2]
[391195737,1760415039050,-500.0,0.00020062,2]
[391195738,1760415039063,-500.0,0.00020062,2]
[391195739,1760415039074,-500.0,0.00020062,2]
[391195740,1760415039084,-500.0,0.00020062,2]
[391195741,1760415039093,-500.0,0.00020062,2]
[391195742,1760415039103,-500.0,0.00020062,2]
[391195743,1760415039115,-500.0,0.00020062,2]
[391195744,1760415039126,-500.0,0.00020062,2]
[391195745,1760415039136,-500.0,0.00020062,2]
[391195746,1760415039146,-500.0,0.00020062,2]
[391195747,1760415039156,-500.0,0.00020062,2]
[391195748,1760415039166,-500.0,0.00020062,2]
[391195749,1760415039176,-500.0,0.00020062,2]
[391195750,1760415039186,-500.0,0.00020062,2]
[391195751,1760415039195,-500.0,0.00020062,2]
[391195752,1760415039205,-500.0,0.00020062,2]
[391195753,1760415039216,-500.0,0.00020062,2]
[391195754,1760415039226,-500.0,0.00020062,2]
[391195755,1760415039236,-500.0,0.00020062,2]
[391195756,1760415039246,-500.0,0.00020062,2]
[391195757,1760415039257,-500.0,0.00020062,2]
[391195758,1760415039269,-500.0,0.00020062,2]
[391195759,1760415039279,-509.35972574,0.00020062,2]
[391195760,1760415039289,-500.0,0.00020062,2]
[391195761,1760415039299,-500.0,0.00020062,2]
[391195762,1760415039309,-500.0,0.00020062,2]
[391195763,1760415039318,-500.0,0.00020062,2]
[391195764,1760415039328,-500.0,0.00020062,2]
[391195765,1760415039338,-500.0,0.00020062,2]
[391195766,1760415039347,-500.0,0.00020062,2]
[391195767,1760415039357,-500.0,0.00020062,2]
[391195768,1760415039367,-500.0,0.00020062,2]
[391195769,1760415039377,-500.0,0.00020062,2]
[391195770,1760415039386,-173.1029555,0.00020062,2]
[391195771,1760415039396,-500.0,0.00020062,2]
[391195772,1760415039406,-500.0,0.00020062,2]
[391195773,1760415039416,-500.0,0.00020062,2]